fUST/lending_fUST_20240219
["ID","MTS","AMOUNT","RATE_DAILY","PERIOD"]
[314398687,1708282246163,-500.0,0.00027379,2]
[314398689,1708282246173,-493.47688999,0.00027379,2]
[314398691,1708282246185,-556.03600323,0.00027379,2]
[314398693,1708282246194,-500.0,0.00027379,2]
[314398695,1708282246203,-500.0,0.00027379,2]
[314398697,1708282246214,-500.0,0.00027379,2]
[314398699,1708282246223,-500.0,0.00027379,2]
[314398701,1708282246232,-556.03600323,0.00027379,2]
[314398703,1708282246241,-500.0,0.00027379,2]
[314398705,1708282246252,-500.0,0.00027379,2]
[314398707,1708282246295,-500.0,0.00027379,2]
[314398709,1708282246305,-500.0,0.00027379,2]
[314398710,1708282246314,-500.0,0.00027379,2]
[314398712,1708282246323,-556.03600323,0.00027379,2]
[314398713,1708282246332,-500.0,0.00027379,2]
[314398715,1708282246343,-500.0,0.00027379,2]
[314398717,1708282246352,-500.0,0.00027379,2]
[314398719,1708282246361,-500.0,0.00027379,2]
[314398720,1708282246371,-139.7553438,0.00027379,2]
[314398807,1708283431990,-2306.00611049,0.00023799,2]
[314398940,1708283437961,-7977.57421231,0.00023799,2]
[314398942,1708283437973,-2107.09578577,0.00023799,2]
[314398945,1708283437989,-6077.95471725,0.00023799,2]
[314398947,1708283437999,-1000.0,0.00023799,2]
[314398950,1708283438017,-1499.03049179,0.00023799,2]
[314399211,1708283441179,-24154.81564241,0.00023799,2]
[314399213,1708283441191,-3734.97808962,0.00023799,2]
[314399216,1708283441203,-1142.54495036,0.00023799,2]
[314399218,1708283441212,-171.875,0.00025057,2]
[314399220,1708283441221,-166.666666,0.00025157,2]
[314399222,1708283441230,-150.0,0.00025279,2]
[314399224,1708283441239,-208.465494,0.00025539,2]
[314399225,1708283441248,-351.16903591,0.00025578,2]
[314399393,1708283442916,-608.21543143,0.00025578,2]
[314399395,1708283442924,-154.14058326,0.00025578,2]
[314399397,1708283442933,-1372.91739311,0.00025578,3]
[314399398,1708283442942,-183.43778745,0.00025578,2]
[314399401,1708283442952,-831.07221187,0.00025578,2]
[314399402,1708283442963,-1000.0,0.00025578,3]
[314399403,1708283442972,-1000.0,0.00025578,3]
[314399404,1708283442981,-440.60267307,0.00025578,2]
[314399405,1708283442990,-7875.7865683,0.00025582,2]
[314399406,1708283442999,-168.422778,0.00025727,2]
[314399407,1708283443008,-2000.95,0.0002599,3]
[314399408,1708283443017,-1667.46,0.0002599,3]
[314399409,1708283443026,-1389.55,0.0002599,3]
[314399410,1708283443036,-1157.96,0.0002599,3]
[314399411,1708283443045,-4150.73122005,0.00026,5]
[314399412,1708283443054,-2000.0,0.00026,2]
[314399413,1708283443063,-200.3472215,0.00026778,2]
[314399414,1708283443073,-200.3472215,0.00026778,2]
[314399415,1708283443083,-200.3472215,0.00026778,2]
[314399416,1708283443091,-200.3472215,0.00026778,2]
[314399417,1708283443101,-1000.0,0.00027,27]
[314399418,1708283443110,-1000.0,0.00027,2]
[314399419,1708283443119,-501.8050529,0.00027123,2]
[314399420,1708283443128,-200.3472215,0.00027123,2]
[314399421,1708283443137,-200.3472215,0.00027123,2]
[314399422,1708283443147,-154.04099162,0.00027297,2]
[314399424,1708283443155,-481.53,0.00027387,3]
[314399426,1708283443164,-500.0,0.00027397,2]
[314399428,1708283443173,-405.92914822,0.00027397,2]
[314399429,1708283443182,-551.55464271,0.00027397,2]
[314399431,1708283443192,-500.0,0.00027397,2]
[314399433,1708283443201,-500.0,0.00027397,2]
[314399435,1708283443210,-500.0,0.00027397,2]
[314399437,1708283443219,-500.0,0.00027397,2]
[314399438,1708283443228,-368.67992988,0.00027397,2]
[314399440,1708283443237,-500.0,0.00027397,2]
[314399442,1708283443246,-500.0,0.00027397,2]
[314399443,1708283443255,-155.0,0.00027397,2]
[314399444,1708283443264,-500.0,0.00027397,2]
[314399446,1708283443274,-3253.32,0.00027397,2]
[314399448,1708283443283,-500.0,0.00027397,2]
[314399450,1708283443291,-717.34,0.00027397,2]
[314399452,1708283443300,-500.0,0.00027397,2]
[314399453,1708283443309,-3446.22,0.00027397,2]
[314399455,1708283443319,-500.0,0.00027397,2]
[314399457,1708283443329,-500.0,0.00027397,2]
[314399459,1708283443338,-500.0,0.00027397,2]
[314399461,1708283443347,-555.25,0.00027397,2]
[314399464,1708283443359,-500.0,0.00027397,2]
[314399466,1708283443368,-604.4,0.00027397,2]
[314399467,1708283443377,-542.57,0.00027397,2]
[314399469,1708283443386,-3634.94,0.00027397,2]
[314399471,1708283443395,-500.0,0.00027397,2]
[314399473,1708283443404,-500.0,0.00027397,2]
[314399476,1708283443414,-666.06,0.00027397,2]
[314399478,1708283443423,-500.0,0.00027397,2]
[314399480,1708283443432,-1761.63,0.00027397,2]
[314399482,1708283443441,-2258.29,0.00027397,2]
[314399484,1708283443451,-3990.1,0.00027397,2]
[314399485,1708283443461,-695.14,0.00027397,2]
[314399487,1708283443471,-856.92,0.00027397,2]
[314399489,1708283443480,-1708.33,0.00027397,2]
[314399492,1708283443489,-500.0,0.00027397,2]
[314399493,1708283443498,-4445.67,0.00027397,2]
[314399496,1708283443508,-779.56,0.00027397,2]
[314399497,1708283443516,-500.0,0.00027397,2]
[314399499,1708283443526,-500.0,0.00027397,2]
[314399501,1708283443535,-600.0,0.00027397,2]
[314399503,1708283443544,-500.0,0.00027397,2]
[314399505,1708283443554,-500.0,0.00027397,2]
[314399508,1708283443567,-150.1,0.00027397,2]
[314399509,1708283443576,-154.0409916,0.00027409,2]
[314399512,1708283443585,-500.0,0.00027411,2]
[314399513,1708283443595,-500.0,0.00027411,2]
[314399515,1708283443605,-500.0,0.00027411,2]
[314399517,1708283443614,-397.40931692,0.00027411,2]
[314399519,1708283443623,-500.0,0.00027411,2]
[314399521,1708283443632,-500.0,0.00027411,2]
[314399523,1708283443642,-935.04453097,0.00027411,2]
[314399525,1708283443651,-277.05298778,0.00027411,2]
[314399527,1708283443660,-500.0,0.00027411,2]
[314399529,1708283443669,-362.25435094,0.00027411,2]
[314399531,1708283443678,-935.04453097,0.00027411,2]
[314399533,1708283443687,-500.0,0.00027411,2]
[314399535,1708283443696,-500.0,0.00027411,2]
[314399537,1708283443705,-500.0,0.00027411,2]
[314399539,1708283443714,-500.0,0.00027411,2]
[314399541,1708283443723,-500.0,0.00027411,2]
[314399543,1708283443733,-935.04453097,0.00027411,2]
[314399545,1708283443742,-500.0,0.00027411,2]
[314399547,1708283443751,-935.04453097,0.00027411,2]
[314399549,1708283443759,-500.0,0.00027411,2]
[314399551,1708283443768,-500.0,0.00027411,2]
[314399553,1708283443777,-500.0,0.00027411,2]
[314399555,1708283443786,-432.89097243,0.00027411,2]
[314399557,1708283443797,-500.0,0.00027411,2]
[314399559,1708283443806,-500.0,0.00027411,2]
[314399561,1708283443815,-935.04453097,0.00027411,2]
[314399563,1708283443827,-500.0,0.00027411,2]
[314399565,1708283443836,-500.0,0.00027411,2]
[314399567,1708283443844,-935.04453097,0.00027411,2]
[314399569,1708283443853,-500.0,0.00027411,2]
[314399571,1708283443862,-500.0,0.00027411,2]
[314399573,1708283443871,-410.03856482,0.00027411,2]
[314399574,1708283443880,-500.0,0.00027411,2]
[314399576,1708283443889,-500.0,0.00027411,2]
[314399578,1708283443899,-935.04453097,0.00027411,2]
[314399580,1708283443909,-500.0,0.00027411,2]
[314399582,1708283443918,-935.04453097,0.00027411,2]
[314399584,1708283443928,-500.0,0.00027411,2]
[314399587,1708283443937,-284.64151478,0.00027411,2]
[314399588,1708283443946,-500.0,0.00027411,2]
[314399591,1708283443956,-935.04453097,0.00027411,2]
[314399593,1708283443966,-500.0,0.00027411,2]
[314399594,1708283443975,-935.04453097,0.00027411,2]
[314399596,1708283443984,-500.0,0.00027411,2]
[314399598,1708283443994,-500.0,0.00027411,2]
[314399600,1708283444003,-500.0,0.00027411,2]
[314399602,1708283444012,-935.04453097,0.00027411,2]
[314399604,1708283444021,-500.0,0.00027411,2]
[314399606,1708283444030,-935.04453097,0.00027411,2]
[314399608,1708283444039,-500.0,0.00027411,2]
[314399610,1708283444049,-500.0,0.00027411,2]
[314399611,1708283444058,-935.04453097,0.00027411,2]
[314399612,1708283444067,-935.04453097,0.00027411,2]
[314399613,1708283444076,-500.0,0.00027411,2]
[314399614,1708283444084,-935.04453097,0.00027411,2]
[314399615,1708283444096,-500.0,0.00027411,2]
[314399617,1708283444106,-935.04453097,0.00027411,2]
[314399619,1708283444114,-500.0,0.00027411,2]
[314399621,1708283444123,-381.42169325,0.00027411,2]
[314399623,1708283444133,-935.04453097,0.00027411,2]
[314399625,1708283444142,-500.0,0.00027411,2]
[314399627,1708283444151,-935.04453097,0.00027411,2]
[314399629,1708283444160,-500.0,0.00027411,2]
[314399631,1708283444169,-500.0,0.00027411,2]
[314399633,1708283444177,-935.04453097,0.00027411,2]
[314399635,1708283444187,-500.0,0.00027411,2]
[314399637,1708283444196,-935.04453097,0.00027411,2]
[314399639,1708283444205,-935.04453097,0.00027411,2]
[314399641,1708283444215,-935.04453097,0.00027411,2]
[314399643,1708283444224,-394.64630416,0.00027411,2]
[314399645,1708283444233,-935.04453097,0.00027411,2]
[314399647,1708283444242,-500.0,0.00027411,2]
[314399648,1708283444251,-935.04453097,0.00027411,2]
[314399650,1708283444260,-500.0,0.00027411,2]
[314399652,1708283444270,-935.04453097,0.00027411,2]
[314399654,1708283444279,-935.04453097,0.00027411,2]
[314399657,1708283444288,-500.0,0.00027411,2]
[314399659,1708283444298,-935.04453097,0.00027411,2]
[314399661,1708283444307,-935.04453097,0.00027411,2]
[314399663,1708283444315,-935.04453097,0.00027411,2]
[314399665,1708283444324,-935.04453097,0.00027411,2]
[314399666,1708283444334,-935.04453097,0.00027411,2]
[314399669,1708283444344,-935.04453097,0.00027411,2]
[314399671,1708283444354,-935.04453097,0.00027411,2]
[314399673,1708283444365,-935.04453097,0.00027411,2]
[314399674,1708283444376,-935.04453097,0.00027411,2]
[314399676,1708283444388,-935.04453097,0.00027411,2]
[314399679,1708283444398,-935.04453097,0.00027411,2]
[314399681,1708283444407,-935.04453097,0.00027411,2]
[314399682,1708283444417,-935.04453097,0.00027411,2]
[314399684,1708283444428,-935.04453097,0.00027411,2]
[314399687,1708283444438,-935.04453097,0.00027411,2]
[314399688,1708283444448,-935.04453097,0.00027411,2]
[314399690,1708283444458,-935.04453097,0.00027411,2]
[314399693,1708283444468,-935.04453097,0.00027411,2]
[314399694,1708283444478,-935.04453097,0.00027411,2]
[314399697,1708283444489,-935.04453097,0.00027411,2]
[314399699,1708283444498,-935.04453097,0.00027411,2]
[314399700,1708283444509,-935.04453097,0.00027411,2]
[314399701,1708283444519,-935.04453097,0.00027411,2]
[314399702,1708283444529,-935.04453097,0.00027411,2]
[314399703,1708283444538,-935.04453097,0.00027411,2]
[314399705,1708283444548,-935.04453097,0.00027411,2]
[314399706,1708283444560,-935.04453097,0.00027411,2]
[314399707,1708283444570,-935.04453097,0.00027411,2]
[314399708,1708283444579,-935.04453097,0.00027411,2]
[314399709,1708283444589,-935.04453097,0.00027411,2]
[314399710,1708283444599,-935.04453097,0.00027411,2]
[314399711,1708283444609,-935.04453097,0.00027411,2]
[314399712,1708283444619,-935.04453097,0.00027411,2]
[314399713,1708283444628,-935.04453097,0.00027411,2]
[314399714,1708283444639,-935.04453097,0.00027411,2]
[314399715,1708283444649,-935.04453097,0.00027411,2]
[314399716,1708283444661,-935.04453097,0.00027411,2]
[314399717,1708283444671,-935.04453097,0.00027411,2]
[314399718,1708283444680,-935.04453097,0.00027411,2]
[314399719,1708283444690,-846.458131,0.00027412,2]
[314399720,1708283444700,-846.458131,0.00027412,2]
[314399721,1708283444709,-846.458131,0.00027412,2]
[314399722,1708283444719,-846.458131,0.00027412,2]
[314399723,1708283444729,-846.458131,0.00027412,2]
[314399724,1708283444738,-846.458131,0.00027412,2]
[314399725,1708283444747,-151.0,0.00027412,2]
[314399726,1708283444757,-151.0,0.00027412,2]
[314399727,1708283444766,-151.0,0.00027412,2]
[314399728,1708283444775,-151.0,0.00027413,2]
[314399729,1708283444784,-151.0,0.00027413,2]
[314399730,1708283444793,-151.0,0.00027413,2]
[314399731,1708283444803,-151.0,0.00027414,2]
[314399732,1708283444812,-151.0,0.00027414,2]
[314399733,1708283444821,-151.0,0.00027414,2]
[314399734,1708283444830,-151.0,0.00027414,2]
[314399735,1708283444840,-151.0,0.00027414,2]
[314399736,1708283444850,-878.129504,0.00027414,2]
[314399737,1708283444861,-878.129504,0.00027414,2]
[314399738,1708283444871,-878.129504,0.00027414,2]
[314399739,1708283444879,-878.129504,0.00027414,2]
[314399740,1708283444892,-878.129504,0.00027414,2]
[314399741,1708283444903,-878.129504,0.00027414,2]
[314399742,1708283444913,-151.0,0.00027415,2]
[314399743,1708283444923,-151.0,0.00027415,2]
[314399744,1708283444933,-151.0,0.00027416,2]
[314399745,1708283444944,-155.142369,0.00027416,2]
[314399746,1708283445028,-164.973968,0.00027416,2]
[314399747,1708283445039,-164.973968,0.00027416,2]
[314399748,1708283445049,-164.973968,0.00027416,2]
[314399749,1708283445058,-164.973968,0.00027416,2]
[314399750,1708283445067,-151.0,0.00027417,2]
[314399751,1708283445077,-151.0,0.00027417,2]
[314399752,1708283445086,-151.0,0.00027417,2]
[314399753,1708283445096,-151.0,0.00027417,2]
[314399754,1708283445105,-217.6062,0.00027417,2]
[314399755,1708283445114,-151.0,0.00027417,2]
[314399756,1708283445124,-164.973968,0.00027419,2]
[314399757,1708283445134,-164.973968,0.00027419,2]
[314399758,1708283445145,-216.465883,0.00027419,2]
[314399759,1708283445156,-997.45604242,0.00027456,2]
[314399760,1708283445165,-172.461499,0.000275,2]
[314399761,1708283445174,-2000.0,0.000275,2]
[314399762,1708283445183,-1000.0,0.00027507,7]
[314399763,1708283445194,-1000.0,0.00027507,7]
[314399764,1708283445203,-5504.43218498,0.00027507,3]
[314399765,1708283445212,-151.0,0.00027507,2]
[314399766,1708283445221,-878.129504,0.00027507,2]
[314399767,1708283445230,-878.129504,0.00027507,2]
[314399768,1708283445239,-846.458131,0.00027507,2]
[314399769,1708283445250,-846.458131,0.00027507,2]
[314399770,1708283445263,-151.0,0.00027507,2]
[314399771,1708283445273,-2000.0,0.0002751,2]
[314399772,1708283445283,-151.0,0.0002751,2]
[314399773,1708283445291,-2000.0,0.0002752,2]
[314399774,1708283445300,-154.0409916,0.0002752,2]
[314399775,1708283445310,-150.0,0.00027523,2]
[314399776,1708283445320,-151.0,0.00027523,2]
[314399777,1708283445329,-2000.0,0.0002753,2]
[314399778,1708283445338,-164.973968,0.0002753,2]
[314399779,1708283445347,-164.973968,0.0002753,2]
[314399780,1708283445356,-5269.02484105,0.00027533,4]
[314399781,1708283445365,-2000.0,0.0002754,2]
[314399783,1708283445374,-151.0,0.0002754,2]
[314399785,1708283445383,-300.0,0.00027543,2]
[314399786,1708283445392,-11852.71539271,0.00027549,4]
[314399789,1708283445437,-5193.40288648,0.00027549,4]
[314399790,1708283445446,-226.58276823,0.00027549,5]
[314399791,1708283445457,-886.027425,0.00027549,5]
[314399838,1708283445993,-503.12011875,0.00025578,3]
[314399856,1708283496062,350.0,0.0002,2]
[314399874,1708284635810,-521.0,0.00020999,2]
[314399875,1708284635824,-350.0,0.00021,2]
[314399876,1708284635838,-350.0,0.00022,2]
[314399877,1708284635852,-350.0,0.00023,2]
[314399878,1708284635867,-20878.8577794,0.00023375,2]
[314399879,1708284635880,-208.465495,0.00023697,2]
[314399880,1708284635894,-350.0,0.00024,2]
[314399881,1708284635905,-7987.29047825,0.00024326,2]
[314399882,1708284635916,-168.980603,0.00024619,2]
[314399883,1708284635934,-166.666666,0.00024658,2]
[314399884,1708284635947,-166.666666,0.00025235,2]
[314399885,1708284635960,-150.0,0.0002543,2]
[314399886,1708284635974,-1191.15095554,0.00025578,3]
[314399887,1708284635986,-166.666666,0.00025812,2]
[314399888,1708284636000,-1000.0,0.0002594,3]
[314399889,1708284636013,-1000.0,0.0002594,3]
[314399890,1708284636026,-1000.0,0.0002594,3]
[314399891,1708284636040,-1000.0,0.0002594,3]
[314399892,1708284636050,-1000.0,0.0002594,3]
[314399893,1708284636061,-1000.0,0.0002594,3]
[314399894,1708284636073,-1000.0,0.0002594,3]
[314399895,1708284636087,-1000.0,0.0002594,3]
[314399896,1708284636099,-1000.0,0.0002594,3]
[314399897,1708284636112,-4749.83820478,0.0002594,3]
[314399898,1708284636125,-1000.0,0.0002594,3]
[314399899,1708284636139,-1000.0,0.0002594,3]
[314399900,1708284636152,-1000.0,0.0002594,3]
[314399901,1708284636163,-1000.0,0.0002594,3]
[314399902,1708284636176,-1000.0,0.0002594,3]
[314399903,1708284636188,-1000.0,0.00026037,3]
[314399904,1708284636200,-1000.0,0.00026037,3]
[314399905,1708284636213,-5062.33920585,0.00026037,3]
[314399906,1708284636226,-1000.0,0.00026037,3]
[314399907,1708284636239,-64.90565614,0.00026037,3]
[314399908,1708284636255,-781.27197536,0.00026037,3]
[314399937,1708284638222,-153.8223685,0.00026037,3]
[314399939,1708284638232,-3392.84138034,0.00026037,2]
[314399941,1708284638243,-943.36750353,0.00026037,2]
[314399944,1708284638256,-177.6984831,0.00026037,3]
[314399946,1708284638267,-221.53889321,0.00026037,3]
[314399948,1708284638278,-200.3472215,0.00026301,2]
[314399951,1708284638290,-166.666666,0.00026388,2]
[314399953,1708284638301,-400.694443,0.00026578,2]
[314399955,1708284638312,-202.1268225,0.00026778,2]
[314399957,1708284638323,-166.666666,0.00026965,2]
[314399959,1708284638334,-200.3472215,0.00027123,2]
[314399962,1708284638345,-205.8503737,0.00027123,2]
[314399964,1708284638356,-400.694443,0.00027123,2]
[314399966,1708284638368,-200.3472215,0.00027123,2]
[314399968,1708284638379,-200.3472215,0.00027123,2]
[314399970,1708284638390,-194.32809523,0.00027297,2]
[314399972,1708284638401,-1073.86,0.00027377,3]
[314399975,1708284638412,-1546.37,0.00027387,3]
[314399977,1708284638423,-1288.64,0.00027387,3]
[314399979,1708284638434,-894.89,0.00027387,3]
[314399981,1708284638445,-500.0,0.00027397,2]
[314399983,1708284638457,-500.0,0.00027397,2]
[314399985,1708284638468,-500.0,0.00027397,2]
[314399987,1708284638479,-500.0,0.00027397,2]
[314399990,1708284638491,-155.0,0.00027397,2]
[314399992,1708284638502,-532.12,0.00027397,2]
[314399994,1708284638513,-500.0,0.00027397,2]
[314399996,1708284638524,-500.0,0.00027397,2]
[314399998,1708284638535,-500.0,0.00027397,2]
[314400001,1708284638545,-500.0,0.00027397,2]
[314400003,1708284638556,-500.0,0.00027397,2]
[314400005,1708284638567,-519.96,0.00027397,2]
[314400007,1708284638578,-579.22,0.00027397,2]
[314400009,1708284638588,-500.0,0.00027397,2]
[314400011,1708284638599,-3483.49,0.00027397,2]
[314400014,1708284638610,-1688.23,0.00027397,2]
[314400016,1708284638625,-500.0,0.00027397,2]
[314400030,1708284638752,-2164.19,0.00027397,2]
[314400032,1708284638762,-500.0,0.00027397,2]
[314400034,1708284638770,-162.91070253,0.00027397,2]
[314400036,1708284638784,-337.08929747,0.00027397,2]
[314400037,1708284638793,-666.18,0.00027397,2]
[314400038,1708284638803,-423.264239,0.00027397,2]
[314400039,1708284638815,-76.735761,0.00027397,2]
[314400040,1708284638825,-500.0,0.00027397,2]
[314400041,1708284638835,-821.22,0.00027397,2]
[314400042,1708284638845,-638.31,0.00027397,2]
[314400043,1708284638854,-500.0,0.00027397,2]
[314400044,1708284638865,-1875.20123356,0.00027397,2]
[314400045,1708284638877,-1948.63876644,0.00027397,2]
[314400046,1708284638887,-1637.15,0.00027397,2]
[314400047,1708284638896,-4260.44,0.00027397,2]
[314400048,1708284638906,-500.0,0.00027397,2]
[314400049,1708284638919,-385.33069429,0.00027397,2]
[314400050,1708284638932,-361.73930571,0.00027397,2]
[314400051,1708284638941,-500.0,0.00027397,2]
[314400052,1708284638950,-3117.77,0.00027397,2]
[314400053,1708284638959,-500.0,0.00027397,2]
[314400054,1708284638969,-687.45,0.00027397,2]
[314400055,1708284638978,-3302.63,0.00027397,2]
[314400056,1708284638988,-500.0,0.00027397,2]
[314400057,1708284638998,-500.0,0.00027397,2]
[314400058,1708284639008,-192.46610908,0.00027397,2]
[314400059,1708284639018,-19039.06045222,0.00027456,4]
[314400060,1708284639027,-5000.0,0.00027456,5]
[314400061,1708284639037,-5000.0,0.00027456,5]
[314400062,1708284639046,-5000.0,0.00027466,5]
[314400063,1708284639055,-17683.71952959,0.00027477,4]
[314400064,1708284639065,-5000.0,0.00027477,5]
[314400065,1708284639075,-4535.52371725,0.00027489,5]
[314400079,1708284641449,-500.0,0.00027397,2]
[314400081,1708284641459,-464.47628275,0.00027489,5]
[314400082,1708284641469,-149.68961851,0.00027489,2]
[314400083,1708284641509,-377.18808449,0.00027489,2]
[314400084,1708284641518,-152.50167442,0.00027489,2]
[314400085,1708284641529,-374.37602858,0.00027489,2]
[314400086,1708284641538,-373.58381677,0.00027497,2]
[314400087,1708284641547,-353.23909773,0.00027497,2]
[314400088,1708284641557,-500.0,0.00027497,2]
[314400089,1708284641566,-212.2265072,0.00027497,2]
[314400090,1708284641575,-500.0,0.00027497,2]
[314400091,1708284641585,-159.21010805,0.00027497,2]
[314400092,1708284641594,-500.0,0.00027497,2]
[314400093,1708284641604,-500.0,0.00027497,2]
[314400094,1708284641613,-153.49129925,0.00027497,2]
[314400095,1708284641622,-500.0,0.00027497,2]
[314400096,1708284641632,-500.0,0.00027497,2]
[314400097,1708284641642,-500.0,0.00027497,2]
[314400098,1708284641651,-543.84958935,0.00027497,2]
[314400099,1708284641660,-500.0,0.00027497,2]
[314400100,1708284641669,-500.0,0.00027497,2]
[314400101,1708284641678,-419.53920931,0.00027497,2]
[314400135,1708284643156,-80.46079069,0.00027497,2]
[314400137,1708284643166,-500.0,0.00027497,2]
[314400139,1708284643175,-500.0,0.00027497,2]
[314400141,1708284643184,-500.0,0.00027497,2]
[314400143,1708284643194,-500.0,0.00027497,2]
[314400145,1708284643203,-293.6462254,0.00027497,2]
[314400147,1708284643215,-206.3537746,0.00027497,2]
[314400149,1708284643225,-500.0,0.00027497,2]
[314400151,1708284643234,-500.0,0.00027497,2]
[314400153,1708284643243,-500.0,0.00027497,2]
[314400155,1708284643253,-500.0,0.00027497,2]
[314400158,1708284643262,-500.0,0.00027497,2]
[314400160,1708284643272,-500.0,0.00027497,2]
[314400162,1708284643281,-500.0,0.00027497,2]
[314400164,1708284643290,-500.0,0.00027497,2]
[314400166,1708284643300,-500.0,0.00027497,2]
[314400168,1708284643309,-500.0,0.00027497,2]
[314400170,1708284643318,-500.0,0.00027497,2]
[314400172,1708284643328,-500.0,0.00027497,2]
[314400174,1708284643337,-500.0,0.00027497,2]
[314400176,1708284643346,-500.0,0.00027497,2]
[314400178,1708284643356,-500.0,0.00027497,2]
[314400180,1708284643365,-500.0,0.00027497,2]
[314400181,1708284643377,-500.0,0.00027497,2]
[314400183,1708284643387,-500.0,0.00027497,2]
[314400185,1708284643396,-500.0,0.00027497,2]
[314400188,1708284643406,-500.0,0.00027497,2]
[314400190,1708284643415,-500.0,0.00027497,2]
[314400191,1708284643425,-500.0,0.00027497,2]
[314400193,1708284643435,-500.0,0.00027497,2]
[314400196,1708284643445,-500.0,0.00027497,2]
[314400198,1708284643455,-500.0,0.00027497,2]
[314400200,1708284643465,-500.0,0.00027497,2]
[314400202,1708284643474,-500.0,0.00027497,2]
[314400204,1708284643484,-500.0,0.00027497,2]
[314400206,1708284643494,-500.0,0.00027497,2]
[314400208,1708284643503,-500.0,0.00027497,2]
[314400210,1708284643513,-500.0,0.00027497,2]
[314400212,1708284643523,-500.0,0.00027497,2]
[314400214,1708284643532,-453.90272563,0.00027497,2]
[314400216,1708284643542,-507.874878,0.00027498,2]
[314400218,1708284643551,-507.874878,0.00027498,2]
[314400220,1708284643560,-151.0,0.00027499,2]
[314400222,1708284643569,-2000.0,0.000275,2]
[314400224,1708284643578,-5000.0,0.000275,5]
[314400226,1708284643588,-5000.0,0.000275,5]
[314400228,1708284643597,-5000.0,0.000275,5]
[314400230,1708284643606,-5000.0,0.000275,5]
[314400232,1708284643616,-4624.70172241,0.000275,5]
[314400234,1708284643631,-375.29827759,0.000275,5]
[314400236,1708284643640,-151.0,0.000275,2]
[314400238,1708284643650,-2962.09477371,0.000275,5]
[314400240,1708284643662,-1637.53249506,0.000275,5]
[314400253,1708284646162,-200.3472215,0.00026301,2]
[314400254,1708284646172,-151.0,0.00027498,2]
[314400255,1708284646182,-400.37273123,0.000275,5]
[314400256,1708284646191,-151.0,0.000275,2]
[314400257,1708284646201,-1362.44004727,0.000275,5]
[314400269,1708285760101,-521.0,0.00024609,2]
[314400270,1708285760123,-739.7927352,0.0002461,2]
[314400287,1708285832320,-354.82348458,0.0002461,2]
[314400289,1708285832332,-23805.38378022,0.0002461,2]
[314400291,1708285832341,-166.666666,0.0002471,2]
[314400293,1708285832352,-4743.35422364,0.00025,2]
[314400295,1708285832362,-2054.1392366,0.00025,2]
[314400297,1708285832371,-182.638265,0.00025261,2]
[314400300,1708285832381,-166.666666,0.00025384,2]
[314400303,1708285832390,-150.0,0.000254,2]
[314400305,1708285832399,-652.20732288,0.00025989,3]
[314400307,1708285832408,-603.55870131,0.00025989,3]
[314400308,1708285832417,-703.06736719,0.00025989,3]
[314400309,1708285832427,-1000.0,0.00025989,3]
[314400310,1708285832436,-1811.23322538,0.00025989,3]
[314400312,1708285832445,-982.82075458,0.00025989,3]
[314400314,1708285832454,-1000.0,0.00025989,3]
[314400316,1708285832463,-2871.74911707,0.00025989,3]
[314400318,1708285832473,-1000.0,0.00025989,3]
[314400320,1708285832482,-1000.0,0.00025989,3]
[314400321,1708285832491,-580.54675665,0.00025989,3]
[314400322,1708285832500,-1000.0,0.00025989,3]
[314400323,1708285832508,-424.22366438,0.00025989,3]